fUST/lending_fUST_20250924
["ID","MTS","AMOUNT","RATE_DAILY","PERIOD"]
[387374859,1758707451898,-480.0,0.00023053,2]
[387374860,1758707451909,-901.83,0.00023053,2]
[387374861,1758707451918,-480.0,0.00023053,2]
[387374862,1758707451929,-2517.39,0.00023053,2]
[387374863,1758707451938,-480.0,0.00023053,2]
[387374864,1758707451949,-1162.04,0.00023053,2]
[387374865,1758707451958,-2996.54,0.00023053,2]
[387374866,1758707451968,-364.96628013,0.00023053,2]
[387374867,1758707451978,-608.81,0.00023053,2]
[387374868,1758707451987,-5048.94,0.00023054,2]
[387374869,1758707451996,-2136.74,0.00023054,2]
[387374870,1758707452006,-857.2,0.00023054,2]
[387374871,1758707452016,-480.0,0.00023055,2]
[387374872,1758707452027,-480.0,0.00023055,2]
[387374873,1758707452038,-916.67,0.00023055,2]
[387374874,1758707452048,-1235.41,0.00023055,2]
[387374875,1758707452057,-198.0,0.00023059,2]
[387374876,1758707452067,-500.0,0.00023059,2]
[387374877,1758707452077,-198.0,0.00023059,2]
[387374878,1758707452087,-500.0,0.00023059,2]
[387374879,1758707452097,-500.0,0.00023092,2]
[387374880,1758707452108,-151.0,0.000231,7]
[387374881,1758707452118,-1732.04820946,0.000231,2]
[387374882,1758707452127,-2330.30651567,0.00023116,2]
[387374883,1758707452137,-996.47168035,0.00023131,2]
[387374884,1758707452147,-8737.38,0.00023149,2]
[387374885,1758707452157,-4948.75967843,0.00023187,2]
[387374886,1758707452166,-31684.36898864,0.0002322,2]
[387374887,1758707452178,-502.69098774,0.00023221,2]
[387374888,1758707452187,-1500.0,0.00023221,2]
[387374889,1758707452197,-1503.2480777,0.00023221,2]
[387374890,1758707452207,-2000.0,0.00023222,2]
[387374891,1758707452217,-500.0,0.00023236,2]
[387374892,1758707452227,-500.0,0.00023244,2]
[387374893,1758707452237,-1503.92049297,0.00023244,2]
[387374894,1758707452247,-396.89908729,0.00023276,2]
[387374895,1758707452262,-103.10091271,0.00023276,2]
[387374896,1758707452271,-893.33,0.00023287,2]
[387374897,1758707452280,-502.61669371,0.00023299,2]
[387374898,1758707452289,-415.73793536,0.00023325,2]
[387374899,1758707452299,-480.68,0.00023325,2]
[387374900,1758707452309,-1093.29,0.00023325,2]
[387374901,1758707452318,-480.0,0.00023326,2]
[387374902,1758707452328,-480.0,0.00023326,2]
[387374903,1758707452338,-480.0,0.00023326,2]
[387374904,1758707452347,-2433.11,0.00023326,2]
[387374905,1758707452357,-480.0,0.00023326,2]
[387374906,1758707452366,-950.85,0.00023326,2]
[387374907,1758707452375,-1372.31,0.00023326,2]
[387374908,1758707452385,-1505.98,0.00023326,2]
[387374909,1758707452394,-480.0,0.00023326,2]
[387374910,1758707452404,-480.0,0.00023326,2]
[387374911,1758707452413,-528.2,0.00023326,2]
[387374912,1758707452424,-480.0,0.00023326,2]
[387374913,1758707452433,-592.29,0.00023326,2]
[387374914,1758707452442,-480.0,0.00023326,2]
[387374915,1758707452452,-799.73,0.00023326,2]
[387374916,1758707452461,-429.48271053,0.00023326,2]
[387374917,1758707452470,-627.43,0.00023326,2]
[387374918,1758707452479,-617.26,0.00023326,2]
[387374919,1758707452489,-480.0,0.00023326,2]
[387374920,1758707452498,-265.53235294,0.00023326,2]
[387374921,1758707452507,-1030.38,0.00023326,2]
[387374922,1758707452517,-597.98,0.00023326,2]
[387374923,1758707452526,-480.0,0.00023326,2]
[387374924,1758707452536,-1355.19,0.00023326,2]
[387374925,1758707452545,-2729.88,0.00023326,2]
[387374926,1758707452554,-480.0,0.00023326,2]
[387374927,1758707452563,-1164.38,0.00023326,2]
[387374928,1758707452573,-480.0,0.00023326,2]
[387374929,1758707452583,-631.11,0.00023327,2]
[387374930,1758707452591,-480.0,0.00023327,2]
[387374931,1758707452602,-901.83,0.00023327,2]
[387374932,1758707452611,-480.0,0.00023327,2]
[387374933,1758707452620,-2517.39,0.00023327,2]
[387374934,1758707452629,-421.46,0.00023327,2]
[387374935,1758707452638,-1162.04,0.00023327,2]
[387374936,1758707452647,-2996.54,0.00023327,2]
[387374937,1758707452657,-608.81,0.00023327,2]
[387374938,1758707452666,-5048.94,0.00023328,2]
[387374939,1758707452676,-2136.74,0.00023328,2]
[387374940,1758707452686,-857.2,0.00023328,2]
[387374941,1758707452695,-480.0,0.00023329,2]
[387374942,1758707452705,-480.0,0.00023329,2]
[387374943,1758707452715,-916.67,0.00023329,2]
[387374944,1758707452725,-1235.41,0.00023329,2]
[387374945,1758707452734,-5.798987,0.00023333,2]
[387374946,1758707452747,-494.201013,0.00023333,2]
[387374947,1758707452757,-500.0,0.00023333,2]
[387374948,1758707452767,-168.0,0.00023351,2]
[387374949,1758707452777,-7175.71277368,0.00023373,2]
[387374950,1758707452788,-14167.6214836,0.00023373,2]
[387374951,1758707452797,-150.0,0.000234,10]
[387374952,1758707452807,-500.0,0.00023409,2]
[387374953,1758707452816,-168.0,0.0002343,2]
[387374954,1758707452825,-56175.06474799,0.0002344,2]
[387374955,1758707452836,-460.0,0.0002344,2]
[387374956,1758707452847,-540.0,0.0002344,2]
[387374957,1758707452962,-1114.0,0.00019116,2]
[387374958,1758707452981,-105.96590865,0.00019116,2]
[387374959,1758707452991,-1381.83993029,0.0002344,2]
[387374960,1758707453212,-507.33138492,0.0002344,2]
[387374961,1758707453223,-5312.89199758,0.0002344,2]
[387374962,1758707453234,-8173.62668011,0.0002344,2]
[387374963,1758707453245,-836.65847624,0.0002344,2]
[387374964,1758707453256,-555.45871648,0.0002344,2]
[387374965,1758707453347,-510.33522986,0.0002344,2]
[387374966,1758707453396,-5000.0,0.00018834,2]
[387374967,1758707453405,-1219.96590865,0.0002058,2]
[387374968,1758707453414,-91137.44436246,0.0002344,2]
[387374969,1758707454050,-68972.796018,0.0002344,2]
[387374970,1758707454061,-2229.12110849,0.0002344,2]
[387374971,1758707454074,-2575.18023849,0.0002344,2]
[387374973,1758707652275,5000.0,0.0002011,13]
[387374974,1758707654703,235.0,0.0002011,13]
[387374975,1758707661233,5000.0,0.0002011,13]
[387374976,1758707670265,5000.0,0.00018001,2]
[387374977,1758707678714,3585.81953854,0.00018001,2]
[387374978,1758707678736,1414.18046146,0.00018001,2]
[387374979,1758707686899,5000.0,0.00018001,2]
[387374980,1758707704183,3585.82953854,0.00018001,2]
[387374981,1758707704211,1414.17046146,0.00018001,2]
[387374982,1758707712562,5000.0,0.00018001,2]
[387374983,1758707729142,3585.83953854,0.00018001,2]
[387374984,1758707729167,1414.16046146,0.00018001,2]
[387374985,1758707737035,5000.0,0.00018001,2]
[387374986,1758707752555,3585.84953854,0.00018001,2]
[387374987,1758707752578,1414.15046146,0.00018001,2]
[387374988,1758707761613,5000.0,0.00018001,2]
[387374990,1758707777616,3585.85953854,0.00018001,2]
[387374991,1758707777638,1414.14046146,0.00018001,2]
[387374992,1758707785546,5000.0,0.00018001,2]
[387374993,1758707802131,3585.86953854,0.00018001,2]
[387374994,1758707802153,1414.13046146,0.00018001,2]
[387374995,1758707810725,5000.0,0.00018001,2]
[387374996,1758707826502,3585.87953854,0.00018001,2]
[387374997,1758707826525,1414.12046146,0.00018001,2]
[387374998,1758707835773,5000.0,0.00018001,2]
[387375000,1758707851161,3585.88953854,0.00018001,2]
[387375001,1758707851185,1414.11046146,0.00018001,2]
[387375003,1758707859042,5000.0,0.00018001,2]
[387375004,1758707875820,3585.89953854,0.00018001,2]
[387375005,1758707875841,1414.10046146,0.00018001,2]
[387375006,1758707878360,237.93654949,0.00018,2]
[387375007,1758707889622,5000.0,0.00018001,2]
[387375009,1758707906315,3347.97298905,0.00018001,2]
[387375010,1758707906339,1652.02701095,0.00018001,2]
[387375011,1758707914213,5000.0,0.00018001,2]
[387375012,1758707930227,3347.98298905,0.00018001,2]
[387375013,1758707930248,1652.01701095,0.00018001,2]
[387375014,1758707938210,5000.0,0.00018001,2]
[387375015,1758707953613,3347.99298905,0.00018001,2]
[387375016,1758707953640,1652.00701095,0.00018001,2]
[387375017,1758707961526,5000.0,0.00018001,2]
[387375018,1758707977899,3348.00298905,0.00018001,2]
[387375019,1758707977920,1651.99701095,0.00018001,2]
[387375020,1758707985869,5000.0,0.00018001,2]
[387375021,1758708002828,3348.01298905,0.00018001,2]
[387375022,1758708002850,1651.98701095,0.00018001,2]
[387375023,1758708011851,5000.0,0.00018001,2]
[387375024,1758708028262,3348.02298905,0.00018001,2]
[387375025,1758708028284,1651.97701095,0.00018001,2]
[387375026,1758708036299,5000.0,0.00018001,2]
[387375027,1758708060224,5000.0,0.00018001,2]
[387375028,1758708080020,-5000.0,0.00018067,2]
[387375029,1758708082940,5000.0,0.00018001,2]
[387375031,1758708099018,5000.0,0.00018001,2]
[387375032,1758708107018,5000.0,0.00018001,2]
[387375033,1758708123572,0.01,0.00018001,2]
[387375034,1758708123594,4999.99,0.00018001,2]
[387375035,1758708132527,5000.0,0.00018067,2]
[387375036,1758708147869,5000.0,0.00018001,2]
[387375037,1758708155858,5000.0,0.00018001,2]
[387375038,1758708173424,0.01,0.00018001,2]
[387375039,1758708173448,4999.99,0.00018001,2]
[387375040,1758708182051,5000.0,0.00018001,2]
[387375041,1758708197496,0.02,0.00018001,2]
[387375042,1758708197517,4999.98,0.00018001,2]
[387375043,1758708206514,5000.0,0.00018001,2]
[387375044,1758708222588,0.03,0.00018001,2]
[387375045,1758708222613,4999.97,0.00018001,2]
[387375046,1758708230555,5000.0,0.00018001,2]
[387375047,1758708246406,0.04,0.00018001,2]
[387375048,1758708246433,4999.96,0.00018001,2]
[387375049,1758708255133,5000.0,0.00018001,2]
[387375050,1758708270688,0.05,0.00018001,2]
[387375051,1758708270712,4999.95,0.00018001,2]
[387375052,1758708277030,3716.2019148,0.00017953,2]
[387375053,1758708279737,1283.8580852,0.00018001,2]
[387375054,1758708279760,3716.1419148,0.00018001,2]
[387375055,1758708295526,5000.0,0.00018001,2]
[387375056,1758708299321,500.0,0.00018,2]
[387375057,1758708303692,783.8680852,0.00018001,2]
[387375058,1758708303716,4216.1319148,0.00018001,2]
[387375059,1758708319748,5000.0,0.00018001,2]
[387375060,1758708320130,-666.0,0.0001819,2]
[387375061,1758708320157,-533.89623038,0.0001819,2]
[387375062,1758708320183,-184.996614,0.0001824,2]
[387375063,1758708320209,-160.0,0.00018252,2]
[387375064,1758708320236,-2072.22431124,0.00018275,2]
[387375065,1758708327597,5000.0,0.00018001,2]
[387375066,1758708342296,161.0,8.1e-07,2]
[387375067,1758708343121,5000.0,0.00018001,2]
[387375068,1758708343618,161.0,8.1e-07,2]
[387375069,1758708344722,161.0,8.1e-07,2]
[387375070,1758708345773,161.0,8.1e-07,2]
[387375071,1758708347514,161.0,8.1e-07,2]
[387375072,1758708351666,5000.0,0.00018001,2]
[387375078,1758708367143,5000.0,0.00018001,2]
[387375080,1758708376155,5000.0,0.00018001,2]
[387375081,1758708391735,0.01,0.00018001,2]
[387375082,1758708391757,4999.99,0.00018001,2]
[387375083,1758708399674,5000.0,0.00018001,2]
[387375085,1758708416291,0.02,0.00018001,2]
[387375086,1758708416318,4999.98,0.00018001,2]
[387375087,1758708421836,500.0,0.00018,2]
[387375088,1758708425411,4500.03,0.00018001,2]
[387375089,1758708425439,499.97,0.00018001,2]
[387375090,1758708433349,500.0,0.00018,2]
[387375091,1758708441162,5000.0,0.00018001,2]
[387375092,1758708445872,500.0,0.00018,2]
[387375093,1758708450067,3500.04,0.00018001,2]
[387375094,1758708450093,1499.96,0.00018001,2]
[387375095,1758708457134,500.0,0.00018,2]
[387375096,1758708466471,5000.0,0.00018001,2]
[387375097,1758708468836,500.0,0.00018,2]
[387375098,1758708474437,2500.05,0.00018001,2]
[387375099,1758708474459,2499.95,0.00018001,2]
[387375100,1758708480221,500.0,0.00018,2]
[387375101,1758708486342,500.0,0.00018,2]
[387375102,1758708490949,5000.0,0.00018001,2]
[387375103,1758708492894,500.0,0.00018,2]
[387375104,1758708497595,500.0,0.00018,2]
[387375105,1758708499427,500.06,0.00018001,2]
[387375106,1758708499449,4499.94,0.00018001,2]
[387375107,1758708503341,500.0,0.00018,2]
[387375108,1758708508211,500.0,0.00018,2]
[387375109,1758708515428,4500.07,0.00018001,2]
[387375110,1758708515450,499.93,0.00018001,2]
[387375111,1758708523851,5000.0,0.00018001,2]
[387375112,1758708540236,4500.08,0.00018001,2]
[387375113,1758708540261,499.92,0.00018001,2]
[387375114,1758708548781,5000.0,0.00018001,2]
[387375115,1758708564109,4500.09,0.00018001,2]
[387375116,1758708564135,499.91,0.00018001,2]
[387375117,1758708573262,5000.0,0.00018001,2]
[387375118,1758708589082,4500.1,0.00018001,2]
[387375119,1758708589108,499.9,0.00018001,2]
[387375120,1758708597534,5000.0,0.00018001,2]
[387375121,1758708599664,4500.11,0.00017979,2]
[387375122,1758708599685,1571.2916288,0.00017979,2]
[387375123,1758708613884,5000.0,0.00018001,2]
[387375124,1758708621697,3428.7183712,0.00018001,2]
[387375125,1758708621845,1571.2816288,0.00018001,2]
[387375148,1758708632107,-729.228876,0.00018074,2]
[387375149,1758708632117,-539.4422247,0.00018187,2]
[387375150,1758708632127,-160.0,0.00018269,2]
[387375151,1758708632136,-300.0,0.00018274,2]
[387375152,1758708632146,-300.0,0.00018274,2]
[387375153,1758708632155,-300.0,0.00018274,2]
[387375154,1758708632165,-300.0,0.00018274,2]
[387375155,1758708632175,-300.0,0.00018274,2]
[387375156,1758708632184,-2765.77568876,0.00018275,2]
[387375158,1758708632194,-1000.0,0.00018275,2]
[387375159,1758708632204,-1000.0,0.00018275,2]
[387375160,1758708632214,-1002.73533706,0.00018275,2]
[387375161,1758708632224,-164.19661527,0.00018275,2]
[387375162,1758708632233,-151.0,0.00018275,2]
[387375163,1758708632242,-151.0,0.00018275,2]
[387375164,1758708632251,-151.0,0.00018275,2]
[387375165,1758708632261,-151.0,0.00018275,2]
[387375166,1758708632270,-151.82605426,0.00018275,2]
[387375167,1758708632279,-1200.0,0.00018299,2]
[387375168,1758708632289,-500.0,0.000183,2]
[387375169,1758708632298,-194.59335792,0.00019011,2]
[387375170,1758708632308,-1975.16340795,0.0001911,2]
[387375171,1758708632320,-50000.0,0.0001911,2]
[387375172,1758708632330,-413.91667487,0.00019111,2]
[387375173,1758708632340,-239.33815656,0.00019111,2]
[387375174,1758708632349,-1200.0,0.00019112,2]
[387375175,1758708632358,-413.91667487,0.00019112,2]
[387375176,1758708632368,-413.91667487,0.00019113,2]
[387375177,1758708632377,-239.33815652,0.00019146,2]
[387375178,1758708632386,-239.33815652,0.00019182,2]
[387375179,1758708632395,-455.48,0.00019202,3]
[387375180,1758708632404,-227.74,0.00019202,3]
[387375181,1758708632413,-683.27,0.00019202,3]
[387375182,1758708632517,-528.64,0.00019203,3]
[387375183,1758708632528,-440.54,0.00019203,3]
[387375184,1758708632538,-910.97,0.00019203,3]
[387375185,1758708632547,-155.606,0.0001921,2]
[387375186,1758708632557,-480.0,0.0001921,2]
[387375187,1758708632566,-480.0,0.0001921,2]
[387375188,1758708632576,-500.0,0.0001921,2]
[387375189,1758708632585,-500.0,0.0001921,2]
[387375190,1758708632594,-500.0,0.0001921,2]
[387375191,1758708632604,-500.0,0.0001921,2]
[387375192,1758708632613,-500.0,0.0001921,2]
[387375193,1758708632628,-500.0,0.0001921,2]
[387375194,1758708632637,-500.0,0.0001921,2]
[387375195,1758708632646,-500.0,0.0001921,2]
[387375196,1758708632655,-500.0,0.0001921,2]
[387375197,1758708632666,-500.0,0.0001921,2]
[387375198,1758708632675,-500.0,0.0001921,2]
[387375199,1758708632685,-500.0,0.0001921,2]
[387375200,1758708632695,-500.0,0.0001921,2]
[387375202,1758708632705,-500.0,0.0001921,2]
[387375204,1758708632714,-250.2432269,0.0001921,2]
[387375206,1758708632724,-500.0,0.0001921,2]
[387375207,1758708632733,-500.0,0.0001921,2]
[387375208,1758708632743,-500.0,0.0001921,2]
[387375209,1758708632752,-500.0,0.0001921,2]
[387375210,1758708632761,-500.0,0.0001921,2]
[387375211,1758708632771,-500.0,0.0001921,2]
[387375212,1758708632782,-500.0,0.0001921,2]
[387375213,1758708632791,-500.0,0.0001921,2]
[387375214,1758708632800,-500.0,0.0001921,2]
[387375215,1758708632810,-500.0,0.0001921,2]
[387375216,1758708632819,-500.0,0.0001921,2]
[387375217,1758708632828,-500.0,0.0001921,2]
[387375218,1758708632837,-500.0,0.0001921,2]
[387375219,1758708632847,-500.0,0.0001921,2]
[387375220,1758708632856,-500.0,0.0001921,2]
[387375221,1758708632865,-500.0,0.0001921,2]
[387375222,1758708632875,-500.0,0.0001921,2]
[387375223,1758708632885,-500.0,0.0001921,2]
[387375224,1758708632894,-500.0,0.0001921,2]
[387375225,1758708632903,-500.0,0.0001921,2]
[387375226,1758708632913,-500.0,0.0001921,2]
[387375227,1758708632923,-329.13699927,0.0001921,2]
[387375228,1758708632932,-500.0,0.0001921,2]
[387375229,1758708632941,-500.0,0.0001921,2]
[387375230,1758708632950,-500.0,0.0001921,2]
[387375231,1758708632960,-500.0,0.0001921,2]
[387375232,1758708632969,-500.0,0.0001921,2]
[387375233,1758708632979,-500.0,0.0001921,2]
[387375234,1758708632989,-500.0,0.0001921,2]
[387375235,1758708632999,-500.0,0.0001921,2]
[387375236,1758708633009,-214.76374281,0.0001921,2]
[387375237,1758708633019,-500.0,0.0001921,2]
[387375238,1758708633029,-500.0,0.0001921,2]
[387375239,1758708633039,-500.0,0.0001921,2]
[387375240,1758708633049,-354.00054656,0.0001921,2]
[387375241,1758708633059,-500.0,0.0001921,2]
[387375242,1758708633069,-500.0,0.0001921,2]
[387375243,1758708633079,-500.0,0.0001921,2]
[387375244,1758708633090,-500.0,0.0001921,2]
[387375245,1758708633100,-500.0,0.0001921,2]
[387375246,1758708633111,-500.0,0.0001921,2]
[387375247,1758708633121,-500.0,0.0001921,2]
[387375248,1758708633132,-500.0,0.0001921,2]
[387375249,1758708633143,-500.0,0.0001921,2]
[387375250,1758708633153,-208.91082357,0.0001921,2]
[387375251,1758708633163,-500.0,0.0001921,2]
[387375252,1758708633173,-500.0,0.0001921,2]
[387375253,1758708633184,-500.0,0.0001921,2]
[387375254,1758708633194,-500.0,0.0001921,2]
[387375255,1758708633203,-500.0,0.0001921,2]
[387375256,1758708633213,-500.0,0.0001921,2]
[387375257,1758708633223,-500.0,0.0001921,2]
[387375258,1758708633233,-500.0,0.0001921,2]
[387375259,1758708633242,-500.0,0.0001921,2]
[387375260,1758708633252,-500.0,0.0001921,2]
[387375261,1758708633261,-500.0,0.0001921,2]
[387375262,1758708633271,-500.0,0.0001921,2]
[387375263,1758708633281,-500.0,0.0001921,2]
[387375264,1758708633290,-500.0,0.0001921,2]
[387375265,1758708633299,-500.0,0.0001921,2]
[387375266,1758708633309,-500.0,0.0001921,2]
[387375267,1758708633318,-500.0,0.0001921,2]
[387375268,1758708633328,-500.0,0.0001921,2]
[387375269,1758708633337,-500.0,0.0001921,2]
[387375270,1758708633347,-500.0,0.0001921,2]
[387375271,1758708633356,-500.0,0.0001921,2]
[387375272,1758708633366,-500.0,0.0001921,2]
[387375273,1758708633376,-500.0,0.0001921,2]
[387375274,1758708633385,-500.0,0.0001921,2]
[387375275,1758708633395,-500.0,0.0001921,2]
[387375276,1758708633404,-500.0,0.0001921,2]
[387375277,1758708633413,-500.0,0.0001921,2]
[387375278,1758708633423,-500.0,0.0001921,2]
[387375279,1758708633433,-500.0,0.0001921,2]
[387375280,1758708633442,-500.0,0.0001921,2]
[387375281,1758708633452,-500.0,0.0001921,2]
[387375282,1758708633461,-500.0,0.0001921,2]
[387375283,1758708633471,-500.0,0.0001921,2]
[387375284,1758708633480,-500.0,0.0001921,2]
[387375285,1758708633490,-500.0,0.0001921,2]
[387375286,1758708633499,-340.07009988,0.0001921,2]
[387375287,1758708633509,-500.0,0.0001921,2]
[387375288,1758708633519,-500.0,0.0001921,2]
[387375289,1758708633528,-500.0,0.0001921,2]
[387375290,1758708633538,-500.0,0.0001921,2]
[387375291,1758708633548,-500.0,0.0001921,2]
[387375292,1758708633557,-500.0,0.0001921,2]
[387375293,1758708633567,-500.0,0.0001921,2]
[387375294,1758708633577,-500.0,0.0001921,2]
[387375295,1758708633586,-500.0,0.0001921,2]
[387375296,1758708633595,-500.0,0.0001921,2]
[387375297,1758708633605,-500.0,0.0001921,2]
[387375298,1758708633614,-500.0,0.0001921,2]
[387375299,1758708633625,-500.0,0.0001921,2]
[387375300,1758708633635,-500.0,0.0001921,2]
[387375301,1758708633644,-300.0,0.0001921,2]
[387375302,1758708633654,-500.0,0.0001921,2]
[387375303,1758708633663,-432.8736853,0.0001921,2]
[387375304,1758708633672,-500.0,0.0001921,2]
[387375305,1758708633683,-500.0,0.0001921,2]
[387375306,1758708633692,-500.0,0.0001921,2]
[387375307,1758708633701,-500.0,0.0001921,2]
[387375308,1758708633710,-500.0,0.0001921,2]
[387375309,1758708633720,-500.0,0.0001921,2]
[387375310,1758708633731,-500.0,0.0001921,2]
[387375311,1758708633740,-500.0,0.0001921,2]
[387375312,1758708633749,-500.0,0.0001921,2]
[387375313,1758708633759,-500.0,0.0001921,2]
[387375314,1758708633769,-500.0,0.0001921,2]
[387375315,1758708633778,-500.0,0.0001921,2]
[387375316,1758708633787,-500.0,0.0001921,2]
[387375317,1758708633796,-500.0,0.0001921,2]
[387375318,1758708633805,-500.0,0.0001921,2]
[387375319,1758708633815,-500.0,0.0001921,2]
[387375320,1758708633825,-500.0,0.0001921,2]
[387375321,1758708633835,-500.0,0.0001921,2]
[387375322,1758708633845,-500.0,0.0001921,2]
[387375323,1758708633854,-500.0,0.0001921,2]
[387375324,1758708633864,-500.0,0.0001921,2]
[387375325,1758708633873,-500.0,0.0001921,2]
[387375326,1758708633883,-500.0,0.0001921,2]
[387375327,1758708633893,-500.0,0.0001921,2]
[387375328,1758708633902,-500.0,0.0001921,2]
[387375329,1758708633913,-500.0,0.0001921,2]
[387375330,1758708633923,-500.0,0.0001921,2]
[387375331,1758708633932,-500.0,0.0001921,2]
[387375332,1758708633942,-500.0,0.0001921,2]
[387375333,1758708633951,-500.0,0.0001921,2]
[387375334,1758708633960,-500.0,0.0001921,2]
[387375335,1758708633969,-500.0,0.0001921,2]
[387375336,1758708633980,-500.0,0.0001921,2]
[387375337,1758708633989,-500.0,0.0001921,2]
[387375338,1758708633999,-500.0,0.0001921,2]
[387375339,1758708634009,-500.0,0.0001921,2]
[387375340,1758708634019,-500.0,0.0001921,2]
[387375341,1758708634028,-500.0,0.0001921,2]
[387375342,1758708634037,-500.0,0.0001921,2]
[387375343,1758708634047,-500.0,0.0001921,2]
[387375344,1758708634056,-500.0,0.0001921,2]
[387375345,1758708634066,-500.0,0.0001921,2]
[387375346,1758708634075,-500.0,0.0001921,2]
[387375347,1758708634085,-500.0,0.0001921,2]
[387375348,1758708634094,-484.00700999,0.0001921,2]
[387375349,1758708634104,-500.0,0.0001921,2]
[387375350,1758708634114,-500.0,0.0001921,2]
[387375351,1758708634123,-480.0,0.0001921,2]
[387375352,1758708634133,-480.0,0.0001921,2]
[387375353,1758708634143,-618.16,0.0001921,2]
[387375354,1758708634153,-171.8886887,0.0001921,2]
[387375355,1758708634163,-483.12435058,0.0001921,2]
[387375356,1758708634172,-480.0,0.0001921,2]
[387375357,1758708634182,-500.0,0.00019211,2]
[387375358,1758708634192,-253.37577,0.00019212,2]
[387375359,1758708634202,-484.59328773,0.00019212,2]
[387375360,1758708634212,-482.31158687,0.00019212,2]
[387375361,1758708634221,-480.0,0.00019212,2]
[387375362,1758708634233,-480.0,0.00019212,2]
[387375363,1758708634243,-1329.27,0.00019212,2]
[387375364,1758708634252,-480.0,0.00019212,2]
[387375365,1758708634261,-480.0,0.00019212,2]
[387375366,1758708634271,-480.0,0.00019212,2]
[387375367,1758708634280,-487.16782111,0.00019212,2]
[387375368,1758708634289,-480.0,0.00019212,2]
[387375369,1758708634299,-857.25,0.00019212,2]
[387375370,1758708634308,-971.45,0.00019212,2]
[387375371,1758708634317,-480.0,0.00019212,2]
[387375372,1758708634326,-480.0,0.00019212,2]
[387375373,1758708634336,-480.0,0.00019212,2]
[387375374,1758708634345,-480.0,0.00019212,2]
[387375375,1758708634354,-480.0,0.00019212,2]
[387375376,1758708634363,-473.46169683,0.00019212,2]
[387375377,1758708634372,-480.0,0.00019212,2]
[387375378,1758708634381,-480.0,0.00019212,2]
[387375379,1758708634390,-547.28,0.00019212,2]
[387375380,1758708634399,-480.0,0.00019212,2]
[387375381,1758708634408,-480.0,0.00019212,2]
[387375382,1758708634417,-480.0,0.00019212,2]
[387375383,1758708634425,-480.0,0.00019212,2]
[387375384,1758708634435,-480.0,0.00019212,2]
[387375385,1758708634444,-1696.59,0.00019212,2]
[387375386,1758708634452,-480.0,0.00019212,2]
[387375387,1758708634461,-562.14,0.00019212,2]
[387375388,1758708634470,-480.0,0.00019213,2]
[387375389,1758708634483,-480.0,0.00019213,2]
[387375390,1758708634492,-480.0,0.00019213,2]
[387375391,1758708634501,-480.0,0.00019213,2]
[387375392,1758708634510,-480.0,0.00019213,2]
[387375393,1758708634519,-480.0,0.00019213,2]
[387375394,1758708634529,-480.0,0.00019213,2]
[387375395,1758708634538,-480.0,0.00019213,2]
[387375396,1758708634547,-480.0,0.00019213,2]
[387375397,1758708634556,-480.0,0.00019213,2]